fUSD/lending_fUSD_20260216
["ID","MTS","AMOUNT","RATE_DAILY","PERIOD"]
[405570126,1771203039332,-334.0,0.00015685,2]
[405570127,1771203039341,-500.0,0.00015699,2]
[405570128,1771203039351,-1010.33831235,0.00015701,2]
[405570129,1771203039361,-200.0,0.00015704,2]
[405570130,1771203039370,-500.0,0.00015704,2]
[405570131,1771203039379,-200.0,0.00015704,2]
[405570132,1771203039392,-500.0,0.00015717,2]
[405570133,1771203039401,-500.0,0.00015717,2]
[405570134,1771203039411,-3239.71804906,0.00015803,2]
[405570135,1771203039420,-2314.57,0.00015808,2]
[405570136,1771203039429,-3454.59842434,0.00015943,2]
[405570137,1771203039439,-450.4,0.00015963,2]
[405570138,1771203039448,-173.48298697,0.00016,3]
[405570139,1771203039458,-547.08215426,0.00016049,2]
[405570140,1771203039467,-159.96,0.00016095,2]
[405570141,1771203039477,-1010.33831235,0.00016141,2]
[405570142,1771203039486,-327.1,0.00016175,2]
[405570143,1771203039496,-510.0,0.00016194,2]
[405570144,1771203039505,-3239.71804906,0.00016222,2]
[405570145,1771203039514,-3454.59842434,0.00016269,2]
[405570146,1771203039523,-500.0,0.00016274,2]
[405570147,1771203039532,-184.72,0.00016285,2]
[405570148,1771203039541,-257.93598758,0.000163,2]
[405570149,1771203039551,-532.06987438,0.00016311,2]
[405570150,1771203039560,-420.0,0.00016378,2]
[405570151,1771203039569,-243.45685178,0.00016383,2]
[405570152,1771203039579,-3738.37860378,0.00016387,2]
[405570153,1771203039588,-213.09688299,0.00016432,2]
[405570154,1771203039597,-1680.0,0.0001646,2]
[405570155,1771203039606,-500.0,0.00016461,2]
[405570156,1771203039615,-600.0,0.00016461,2]
[405570157,1771203039624,-202.35843384,0.00016461,2]
[405570158,1771203039633,-193.0,0.00016461,2]
[405570159,1771203039643,-195.0,0.00016461,2]
[405570160,1771203039652,-209.40437684,0.00016536,2]
[405570161,1771203039661,-721.12765535,0.00016536,2]
[405570162,1771203039670,-277.35679052,0.00016536,2]
[405570163,1771203039680,-151.0,0.00016536,2]
[405570164,1771203039690,-151.0,0.00016536,2]
[405570165,1771203039699,-151.0,0.00016536,2]
[405570166,1771203039708,-151.0,0.00016536,2]
[405570167,1771203039717,-151.0,0.00016536,2]
[405570168,1771203039726,-151.0,0.00016536,2]
[405570169,1771203039735,-500.0,0.00016536,2]
[405570170,1771203039744,-151.0,0.00016536,2]
[405570171,1771203039754,-500.0,0.00016536,2]
[405570172,1771203039763,-151.0,0.00016536,2]
[405570173,1771203039772,-500.0,0.00016536,2]
[405570174,1771203039781,-151.0,0.00016536,2]
[405570175,1771203039791,-500.0,0.00016536,2]
[405570176,1771203039800,-500.0,0.00016536,2]
[405570177,1771203039809,-500.0,0.00016536,2]
[405570178,1771203039818,-500.0,0.00016536,2]
[405570179,1771203039828,-500.0,0.00016536,2]
[405570180,1771203039837,-500.0,0.00016536,2]
[405570181,1771203039846,-500.0,0.00016536,2]
[405570182,1771203039855,-500.0,0.00016536,2]
[405570183,1771203039864,-209.40437684,0.00016536,2]
[405570184,1771203039873,-174.61919141,0.00016536,2]
[405570185,1771203039882,-578.20924308,0.00016536,2]
[405570186,1771203039891,-693.3919763,0.00016536,2]
[405570187,1771203039900,-162.380719,0.00016536,2]
[405570188,1771203039909,-500.0,0.00016536,2]
[405570189,1771203039919,-500.0,0.00016536,2]
[405570190,1771203039928,-500.0,0.00016536,2]
[405570191,1771203039938,-500.0,0.00016536,2]
[405570192,1771203039947,-500.0,0.00016536,2]
[405570193,1771203039956,-500.0,0.00016536,2]
[405570194,1771203039966,-500.0,0.00016536,2]
[405570195,1771203039975,-500.0,0.00016536,2]
[405570196,1771203039984,-500.0,0.00016536,2]
[405570197,1771203039994,-500.0,0.00016536,2]
[405570198,1771203040003,-500.0,0.00016536,2]
[405570199,1771203040012,-1000.0,0.0001654,2]
[405570200,1771203040021,-2314.57,0.00016561,2]
[405570201,1771203040030,-701.03999964,0.0001657,2]
[405570202,1771203040039,-195.0,0.0001657,2]
[405570203,1771203040049,-500.0,0.0001657,2]
[405570204,1771203040058,-300.0,0.0001657,2]
[405570205,1771203040067,-600.0,0.0001657,2]
[405570206,1771203040077,-250.0,0.00016571,2]
[405570207,1771203040087,-250.0,0.00016571,2]
[405570208,1771203040096,-250.0,0.00016571,2]
[405570209,1771203040106,-1010.33831235,0.00016581,2]
[405570210,1771203040116,-719.04747942,0.00016591,2]
[405570211,1771203040125,-3454.59842434,0.00016596,2]
[405570212,1771203040134,-424.38135997,0.00016611,2]
[405570213,1771203040143,-1223.74,0.00016626,2]
[405570214,1771203040153,-745.65223616,0.00016646,2]
[405570215,1771203040162,-773.2413689,0.00016701,2]
[405570216,1771203040173,-801.85129955,0.00016756,2]
[405570217,1771203040182,-831.51979763,0.00016811,2]
[405570218,1771203040191,-862.28603014,0.00016866,2]
[405570219,1771203040201,-611.0,0.00016887,2]
[405570220,1771203040210,-159.96,0.000169,2]
[405570221,1771203040219,-611.0,0.00016909,2]
[405570222,1771203040229,-894.19061326,0.00016921,2]
[405570223,1771203040238,-3454.59842434,0.00016922,2]
[405570224,1771203040248,-927.27566595,0.00016976,2]
[405570225,1771203040257,-500.0,0.00016999,2]
[405570226,1771203040267,-500.0,0.00016999,2]
[405570227,1771203040276,-300.0,0.00017,2]
[405570228,1771203040286,-1010.33831235,0.0001702,2]
[405570229,1771203040296,-961.58486559,0.00017031,2]
[405570230,1771203040306,-217.15233878,0.00017084,2]
[405570231,1771203040318,-287.61899177,0.00017084,2]
[405570232,1771203040327,-217.15233878,0.00017084,2]
[405570233,1771203040336,-181.08010149,0.00017084,2]
[405570234,1771203040346,-997.16350561,0.00017086,2]
[405570235,1771203040355,-611.0,0.00017092,2]
[405570236,1771203040365,-257.93598757,0.000171,2]
[405570237,1771203040375,-611.0,0.00017104,2]
[405570238,1771203040385,-611.0,0.00017149,2]
[405570239,1771203040394,-611.0,0.000172,2]
[405570240,1771203040403,-3454.59842434,0.00017248,2]
[405570241,1771203040412,-183.0,0.00017285,2]
[405570242,1771203040422,-611.0,0.00017288,2]
[405570243,1771203040431,-350.0,0.00017309,2]
[405570244,1771203040440,-2314.57,0.00017314,2]
[405570245,1771203040449,-450.4,0.00017333,2]
[405570246,1771203040458,-183.0,0.0001739,2]
[405570247,1771203040468,-720.0,0.00017414,2]
[405570248,1771203040477,-1010.33831235,0.0001746,2]
[405570249,1771203040487,-3454.59842434,0.00017574,2]
[405570250,1771203040496,-225.18697532,0.00017632,2]
[405570251,1771203040505,-298.26089446,0.00017632,2]
[405570252,1771203040514,-225.18697532,0.00017632,2]
[405570253,1771203040524,-187.78006525,0.00017632,2]
[405570254,1771203040533,-159.96,0.00017705,2]
[405570255,1771203040543,-176.3781679,0.0001771,2]
[405570256,1771203040553,-160.0,0.00017724,2]
[405570257,1771203040562,-173.48298697,0.00017724,2]
[405570258,1771203040572,-250.0,0.00017731,2]
[405570259,1771203040581,-151.0,0.00017797,2]
[405570260,1771203040591,-299213.9367,0.000178,2]
[405570261,1771203040600,-500.0,0.00017808,2]
[405570262,1771203040610,-500.0,0.00017808,2]
[405570263,1771203040619,-500.0,0.00017808,2]
[405570264,1771203040630,-500.0,0.00017808,2]
[405570265,1771203040639,-500.0,0.00017808,2]
[405570266,1771203040650,-500.0,0.00017808,2]
[405570267,1771203040659,-500.0,0.00017808,2]
[405570268,1771203040669,-500.0,0.00017808,2]
[405570269,1771203040678,-229.13104377,0.00017808,2]
[405570270,1771203040688,-500.0,0.00017808,2]
[405570271,1771203040697,-500.0,0.00017808,2]
[405570272,1771203040707,-1739.50643,0.0001782,2]
[405570273,1771203040716,-1739.50642,0.0001782,2]
[405570274,1771203040725,-32840.4146,0.00017899,2]
[405570275,1771203040735,-1000.0,0.00017899,2]
[405570276,1771203040744,-1010.33831235,0.000179,2]
[405570277,1771203040753,-3454.59842434,0.000179,2]
[405570278,1771203040763,-257.93598757,0.000179,2]
[405570279,1771203040773,-213.09688299,0.000179,2]
[405570280,1771203040783,-500.0,0.000179,2]
[405570281,1771203040792,-500.0,0.000179,2]
[405570283,1771203040802,-500.0,0.000179,2]
[405570285,1771203040812,-500.0,0.000179,2]
[405570287,1771203040821,-500.0,0.000179,2]
[405570289,1771203040831,-500.0,0.000179,2]
[405570291,1771203040840,-500.0,0.000179,2]
[405570293,1771203040849,-168.3888056,0.00017905,2]
[405570295,1771203040858,-205.34352034,0.00017973,2]
[405570297,1771203040868,-501.84934801,0.00017973,2]
[405570299,1771203040877,-500.0,0.00017973,2]
[405570301,1771203040886,-34046.27413047,0.00017997,2]
[405570303,1771203040896,-151.0,0.00017997,2]
[405570305,1771203040907,-134690.2896968,0.00017998,2]
[405570307,1771203040916,-3882.8245834,0.00017998,2]
[405570309,1771203040925,-300.0,0.00017999,2]
[405570311,1771203040935,-666.0,0.00017999,2]
[405570313,1771203040944,-300.0,0.00017999,2]
[405570315,1771203040953,-500.0,0.00017999,2]
[405570317,1771203040963,-500.0,0.00017999,2]
[405570319,1771203040972,-500.0,0.00017999,2]
[405570321,1771203040982,-500.0,0.00017999,2]
[405570323,1771203040991,-500.0,0.00017999,2]
[405570325,1771203041001,-500.0,0.00017999,2]
[405570327,1771203041011,-500.0,0.00017999,2]
[405570329,1771203041020,-500.0,0.00017999,2]
[405570331,1771203041030,-500.0,0.00017999,2]
[405570334,1771203041039,-417.2866735,0.00017999,2]
[405570337,1771203041048,-500.0,0.00017999,2]
[405570339,1771203041058,-438.88056851,0.00017999,2]
[405570342,1771203041067,-689.33478956,0.00017999,2]
[405570345,1771203041077,-77077.70299126,0.00017999,2]
[405570349,1771203041100,-1086.8797393,0.00017999,2]
[405570351,1771203041110,-302.38540097,0.00017999,2]
[405570387,1771203042025,-13506.81125319,0.00017999,2]
[405570429,1771203060261,-3338.78006525,0.00017999,2]
[405570430,1771203061248,-2093.66667101,0.00016642,2]
[405570431,1771203061263,-341.36208602,0.00016642,2]
[405570432,1771203061277,-722.8955016,0.00016642,2]
[405570433,1771203061348,-81.79379043,0.00016642,2]
[405570434,1771203061359,-243.45685178,0.000179,2]
[405570435,1771203061368,-3363.66595902,0.00017999,2]
[405570436,1771203061379,-1897.46000004,0.00017999,2]
[405570437,1771203061391,-2684.21729267,0.00017999,2]
[405570438,1771203061403,-986.7,0.00017999,2]
[405570439,1771203061413,-2219.31848434,0.00017999,2]
[405570443,1771203064539,2171.349368,0.00014865,2]
[405570444,1771203064752,417.65356159,0.00014955,2]
[405570458,1771203115765,1056.36,0.00013649,2]
[405570459,1771203115971,1056.36,0.00013829,2]
[405570460,1771203116172,1056.36,0.00014009,2]
[405570461,1771203116395,1056.36,0.00014188,2]
[405570462,1771203116594,1056.36,0.00014368,2]
[405570463,1771203116783,1056.36,0.00014547,2]
[405570464,1771203116972,1056.36,0.00014727,2]
[405570465,1771203117181,1056.36,0.00014907,2]
[405570466,1771203127478,534.59,0.00014964,2]
[405570467,1771203127723,534.59,0.00014964,2]
[405570468,1771203127944,479.95,0.00014964,2]
[405570469,1771203127965,54.64,0.00014964,2]
[405570470,1771203128224,534.59,0.00014964,2]
[405570471,1771203128490,500.0,0.00014964,2]
[405570472,1771203129257,534.59,0.00014964,2]
[405570473,1771203129500,534.59,0.00014964,2]
[405570474,1771203129739,534.59,0.00014964,2]
[405570475,1771203129964,534.59,0.00014964,2]
[405570476,1771203130216,534.59,0.00014964,2]
[405570477,1771203130440,534.59,0.00014964,2]
[405570478,1771203130692,534.59,0.00014964,2]
[405570479,1771203130955,534.59,0.00014964,2]
[405570480,1771203131159,534.59,0.00014964,2]
[405570481,1771203131408,534.59,0.00014964,2]
[405570491,1771203279519,165.77460071,0.00014956,2]
[405570494,1771203331892,218.31,0.00014921,3]
[405570495,1771203351735,296.39417214,0.00014921,2]
[405570504,1771203432249,1000.0,0.000147,2]
[405570507,1771203579007,1600.0,0.00014614,2]
[405570513,1771203634089,1376.0,0.00022,120]
[405570514,1771203653062,500.0,0.00014964,2]
[405570515,1771203653246,500.0,0.00014614,2]
[405570516,1771203653291,500.0,0.00014964,2]
[405570517,1771203654661,500.0,0.00014964,2]
[405570518,1771203654748,500.0,0.00014964,2]
[405570519,1771203654834,500.0,0.00014964,2]
[405570520,1771203654921,500.0,0.00014964,2]
[405570521,1771203655006,500.0,0.00014964,2]
[405570522,1771203655089,264.89122715,0.00014964,2]
[405570523,1771203655114,235.10877285,0.00014964,2]
[405570524,1771203659108,500.0,0.00014964,2]
[405570525,1771203659356,500.0,0.00014964,2]
[405570526,1771203659617,500.0,0.00014964,2]
[405570527,1771203659924,500.0,0.00014964,2]
[405570528,1771203660156,500.0,0.00014964,2]
[405570529,1771203660397,500.0,0.00014964,2]
[405570532,1771203664282,169.12716926,0.00014964,2]
[405570537,1771203729269,183.28,0.00014556,3]
[405570538,1771203741717,166.67,0.00014961,2]
[405570540,1771203752558,4110.74,0.00015,10]
[405570541,1771203767049,166.66,0.00013791,2]
[405570542,1771203767497,166.66,0.00014081,2]
[405570543,1771203767756,166.66,0.00014371,2]
[405570544,1771203767881,166.66,0.00014662,2]
[405570545,1771203768752,166.66,0.00014952,2]
[405570548,1771203824579,-2188.6926869,0.00014976,2]
[405570549,1771203824611,-416.87192959,0.00014976,2]
[405570550,1771203842938,243.45685178,0.00014976,2]
[405570551,1771203857627,2429.78853683,0.00014976,2]
[405570552,1771203858681,1875.6432742,0.00014976,2]
[405570553,1771203898513,239.99210421,0.00014976,2]
[405570554,1771203898538,1583.91846819,0.00014976,2]
[405570555,1771203898767,6540.64,0.00011441,2]
[405570556,1771203933222,1875.45153181,0.00014976,2]
[405570557,1771203933244,1435.69800093,0.00014976,2]
[405570558,1771203951556,500.0,0.00014976,2]
[405570559,1771203958241,277.91461974,0.00014976,2]
[405570560,1771203965088,169.12716927,0.00014976,2]
[405570563,1771203978510,1519.925477,0.00014976,2]
[405570567,1771203989439,1250.42884948,0.00014976,2]
[405570568,1771203990934,500.52,0.00014155,2]
[405570579,1771204053432,2207.43302182,0.00014976,2]
[405570580,1771204057320,1266.60456415,0.00014976,2]
[405570583,1771204148963,-833.61923298,0.00014963,2]
[405570584,1771204148990,-2126.0649697,0.00014963,2]
[405570585,1771204149018,-1055.50380345,0.00014963,2]
[405570586,1771204165688,-5278.87614944,0.00014963,2]
[405570587,1771204165744,-10000.01,0.00014963,2]
[405570591,1771204213072,-1200.0,0.00014962,2]
[405570592,1771204213121,-300.0,0.00014962,2]
[405570593,1771204213162,-500.0,0.00014963,2]
[405570594,1771204213331,-6000.01,0.00014963,2]
[405570595,1771204213565,-10000.01,0.00014963,2]
[405570596,1771204216114,-1395.77398673,0.00014963,2]
[405570597,1771204216145,-942.88984762,0.00014963,2]
[405570598,1771204216176,-1471.62201456,0.00014963,2]
[405570599,1771204231426,-879.5865029,0.00014964,2]
[405570600,1771204231436,-58.9634971,0.00014964,2]
[405570601,1771204231536,-126.31291606,0.00014964,2]
[405570602,1771204231546,-500.0,0.00014984,2]
[405570603,1771204231556,-300.0,0.00014984,2]
[405570604,1771204231566,-701.03999964,0.00014984,2]
[405570605,1771204231575,-125.50354633,0.00014984,2]
[405570606,1771204231586,-374.49645367,0.00014984,2]
[405570607,1771204231597,-177.56163318,0.00014984,2]
[405570608,1771204237755,-72.43836682,0.00014984,2]
[405570609,1771204237766,-195.0,0.00014984,2]
[405570610,1771204237775,-195.0,0.00014984,2]
[405570611,1771204237784,-3834.71,0.00014996,2]
[405570612,1771204237795,-250.0,0.00015,2]
[405570613,1771204237805,-300.0,0.00015003,2]
[405570614,1771204237815,-42101.82697313,0.00015004,2]
[405570615,1771204237825,-9999.99,0.00015014,2]
[405570616,1771204237835,-150.99,0.00015014,2]
[405570617,1771204237845,-9999.99,0.00015014,2]
[405570618,1771204237854,-299.99,0.00015014,2]
[405570619,1771204237863,-150.99,0.00015014,2]
[405570620,1771204237873,-9999.99,0.00015014,2]
[405570621,1771204237882,-515.5,0.00015014,2]
[405570622,1771204237891,-999.99,0.00015014,2]
[405570623,1771204237900,-224.0,0.00015014,2]
[405570624,1771204237909,-200.0,0.00015055,2]
[405570625,1771204237919,-500.0,0.00015062,2]
[405570626,1771204237928,-500.0,0.00015062,2]
[405570627,1771204237938,-500.0,0.00015062,2]
[405570628,1771204237947,-500.0,0.00015062,2]
[405570629,1771204237957,-500.0,0.00015062,2]
[405570630,1771204237967,-500.0,0.00015062,2]
[405570631,1771204237977,-500.0,0.00015062,2]
[405570632,1771204237986,-500.0,0.00015062,2]
[405570633,1771204237996,-500.0,0.00015062,2]
[405570634,1771204238005,-500.0,0.00015062,2]
[405570635,1771204238014,-500.0,0.00015062,2]
[405570636,1771204238024,-500.0,0.00015062,2]
[405570637,1771204238033,-500.0,0.00015062,2]
[405570638,1771204238042,-500.0,0.00015062,2]
[405570639,1771204238052,-500.0,0.00015062,2]
[405570640,1771204238062,-500.0,0.00015062,2]
[405570641,1771204238071,-500.0,0.00015062,2]
[405570642,1771204238080,-500.0,0.00015062,2]
[405570643,1771204238089,-500.0,0.00015062,2]
[405570644,1771204238099,-500.0,0.00015062,2]
[405570645,1771204238108,-500.0,0.00015062,2]
[405570646,1771204238117,-500.0,0.00015062,2]
[405570647,1771204238127,-500.0,0.00015062,2]
[405570648,1771204238136,-500.0,0.00015062,2]
[405570649,1771204238146,-500.0,0.00015062,2]
[405570650,1771204238155,-500.0,0.00015062,2]
[405570651,1771204238164,-500.0,0.00015062,2]
[405570652,1771204238173,-270.63624358,0.00015062,2]
[405570653,1771204238183,-500.0,0.00015062,2]
[405570654,1771204238192,-500.0,0.00015062,2]
[405570655,1771204238202,-500.0,0.00015062,2]
[405570656,1771204238211,-500.0,0.00015062,2]
[405570657,1771204238222,-500.0,0.00015062,2]
[405570658,1771204238233,-252.41415368,0.00015062,2]
[405570659,1771204238243,-500.0,0.00015062,2]
[405570660,1771204238253,-500.0,0.00015062,2]
[405570661,1771204238263,-212.9132906,0.00015062,2]
[405570662,1771204238273,-500.0,0.00015062,2]
[405570663,1771204238282,-526.17314314,0.00015062,2]
[405570664,1771204238292,-321.09114615,0.00015062,2]
[405570665,1771204238301,-243.97472272,0.00015062,2]
[405570666,1771204238311,-413.22676629,0.00015062,2]
[405570667,1771204238321,-540.53950466,0.00015062,2]
[405570668,1771204238330,-1094.52409478,0.00015062,2]
[405570669,1771204238340,-1094.52409478,0.00015062,2]
[405570670,1771204238350,-1094.52409478,0.00015062,2]
[405570671,1771204238359,-1094.52409478,0.00015062,2]
[405570672,1771204238369,-1094.52409478,0.00015062,2]
[405570673,1771204238379,-1094.52409478,0.00015062,2]
[405570674,1771204238388,-1094.52409478,0.00015062,2]
[405570675,1771204238397,-1094.52409478,0.00015062,2]
[405570676,1771204238407,-1094.52409478,0.00015062,2]
[405570677,1771204238417,-1094.52409478,0.00015062,2]
[405570678,1771204238427,-1094.52409478,0.00015062,2]
[405570679,1771204238436,-1094.52409478,0.00015062,2]
[405570680,1771204238447,-1094.52409478,0.00015062,2]
[405570681,1771204238457,-1094.52409478,0.00015062,2]
[405570682,1771204238467,-1094.52409478,0.00015062,2]
[405570683,1771204238476,-1094.52409478,0.00015062,2]
[405570684,1771204238486,-1094.52409478,0.00015062,2]
[405570685,1771204238496,-1094.52409478,0.00015062,2]
[405570686,1771204238506,-1094.52409478,0.00015062,2]
[405570687,1771204238516,-1094.52409478,0.00015062,2]
[405570688,1771204238525,-1094.52409478,0.00015062,2]
[405570689,1771204238535,-1094.52409478,0.00015062,2]
[405570690,1771204238545,-1094.52409478,0.00015062,2]
[405570691,1771204238555,-1094.52409478,0.00015062,2]
[405570692,1771204238565,-1094.52409478,0.00015062,2]
[405570693,1771204238575,-1094.52409478,0.00015062,2]
[405570694,1771204238584,-1094.52409478,0.00015062,2]
[405570695,1771204238594,-1094.52409478,0.00015062,2]
[405570696,1771204238603,-1094.52409478,0.00015062,2]
[405570697,1771204238613,-1094.52409478,0.00015062,2]
[405570698,1771204238623,-1094.52409478,0.00015062,2]
[405570699,1771204238632,-1094.52409478,0.00015062,2]
[405570700,1771204238642,-1094.52409478,0.00015062,2]
[405570701,1771204238652,-1094.52409478,0.00015062,2]
[405570702,1771204238662,-1094.52409478,0.00015062,2]
[405570703,1771204238671,-1094.52409478,0.00015062,2]
[405570704,1771204238685,-1090.68365936,0.00015062,2]
[405570705,1771204238695,-1090.68365936,0.00015062,2]
[405570706,1771204238705,-1090.68365936,0.00015062,2]
[405570707,1771204238715,-1090.68365936,0.00015062,2]
[405570708,1771204238726,-1090.68365936,0.00015062,2]
[405570709,1771204238736,-1090.68365936,0.00015062,2]
[405570710,1771204238745,-1090.68365936,0.00015062,2]
[405570711,1771204238756,-1090.68365936,0.00015062,2]
[405570712,1771204238765,-1090.68365936,0.00015062,2]
[405570713,1771204238775,-1090.68365936,0.00015062,2]
[405570714,1771204238785,-1090.68365936,0.00015062,2]
[405570715,1771204238795,-1090.68365936,0.00015062,2]
[405570716,1771204238804,-1090.68365936,0.00015062,2]
[405570717,1771204238814,-1090.68365936,0.00015062,2]
[405570718,1771204238823,-1090.68365936,0.00015062,2]
[405570719,1771204238833,-1090.68365936,0.00015062,2]
[405570720,1771204238843,-1090.68365936,0.00015062,2]
[405570721,1771204238853,-1090.68365936,0.00015062,2]
[405570722,1771204238863,-1001.85399383,0.00015063,2]
[405570723,1771204238872,-500.0,0.00015063,2]
[405570724,1771204238882,-3500000.0,0.00015063,2]
[405570725,1771204238891,-500.0,0.00015064,2]
[405570726,1771204238901,-500.0,0.00015064,2]
[405570727,1771204238910,-500.0,0.00015064,2]
[405570728,1771204238920,-302.86,0.00015064,2]
[405570729,1771204238929,-500.0,0.00015064,2]
[405570730,1771204238939,-1056.36,0.00015086,2]
[405570731,1771204238949,-484048.11045177,0.00015147,2]
[405570732,1771204238960,-500.25,0.00015151,2]
[405570733,1771204238970,-13862.69,0.00015155,2]
[405570734,1771204238979,-3159.9036,0.00015155,2]
[405570735,1771204238989,-200.0,0.00015155,2]
[405570736,1771204238999,-151.0,0.00015155,2]
[405570737,1771204239009,-151.0,0.00015155,2]
[405570738,1771204239019,-151.0,0.00015155,2]
[405570739,1771204239029,-151.0,0.00015155,2]
[405570740,1771204239047,-151.0,0.00015155,2]
[405570741,1771204239057,-151.0,0.00015155,2]
[405570742,1771204239066,-151.0,0.00015155,2]
[405570743,1771204239076,-151.0,0.00015155,2]
[405570744,1771204239086,-151.0,0.00015155,2]
[405570745,1771204239095,-151.0,0.00015155,2]
[405570746,1771204239104,-151.0,0.00015155,2]
[405570747,1771204239114,-151.0,0.00015155,2]
[405570748,1771204239123,-151.0,0.00015155,2]
[405570749,1771204239134,-151.0,0.00015155,2]
[405570750,1771204239143,-151.0,0.00015155,2]
[405570751,1771204239152,-151.0,0.00015155,2]
[405570752,1771204239162,-151.0,0.00015155,2]
[405570753,1771204239171,-151.0,0.00015155,2]
[405570754,1771204239180,-151.0,0.00015155,2]
[405570755,1771204239190,-151.0,0.00015155,2]
[405570756,1771204239199,-500.0,0.00015155,2]
[405570757,1771204239210,-151.0,0.00015155,2]
[405570758,1771204239219,-151.0,0.00015155,2]
[405570759,1771204239229,-500.0,0.00015155,2]
[405570760,1771204239238,-151.0,0.00015155,2]
[405570761,1771204239247,-500.0,0.00015155,2]
[405570762,1771204239258,-151.0,0.00015155,2]
[405570763,1771204239269,-500.0,0.00015155,2]
[405570764,1771204239278,-151.0,0.00015155,2]
[405570765,1771204239287,-500.0,0.00015155,2]
[405570766,1771204239297,-151.0,0.00015155,2]
[405570767,1771204239306,-500.0,0.00015155,2]
[405570768,1771204239317,-151.0,0.00015155,2]
[405570769,1771204239326,-500.0,0.00015155,2]
[405570770,1771204239335,-151.0,0.00015155,2]
[405570771,1771204239345,-500.0,0.00015155,2]
[405570772,1771204239354,-151.0,0.00015155,2]
[405570773,1771204239364,-151.0,0.00015155,2]
[405570774,1771204239374,-151.0,0.00015155,2]
[405570775,1771204239384,-500.0,0.00015155,2]
[405570776,1771204239393,-500.0,0.00015155,2]
[405570777,1771204239402,-500.0,0.00015155,2]
[405570778,1771204239411,-500.0,0.00015155,2]
[405570779,1771204239421,-500.0,0.00015155,2]
[405570780,1771204239430,-500.0,0.00015155,2]
[405570781,1771204239440,-500.0,0.00015155,2]
[405570782,1771204239450,-500.0,0.00015155,2]
[405570783,1771204239460,-500.0,0.00015155,2]
[405570784,1771204239469,-500.0,0.00015155,2]
[405570785,1771204239479,-500.0,0.00015155,2]
[405570786,1771204239488,-500.0,0.00015155,2]
[405570787,1771204239502,-500.0,0.00015155,2]
[405570788,1771204239512,-500.0,0.00015155,2]
[405570789,1771204239522,-500.0,0.00015155,2]
[405570790,1771204239531,-34046.27413047,0.00015163,2]
[405570791,1771204239541,-500.0,0.00015164,2]
[405570792,1771204239550,-500.0,0.00015164,2]
[405570793,1771204239560,-500.0,0.00015164,2]
[405570794,1771204239569,-500.0,0.00015164,2]
[405570796,1771204239578,-500.0,0.00015164,2]
[405570797,1771204239588,-500.0,0.00015164,2]
[405570798,1771204239597,-500.0,0.00015164,2]
[405570799,1771204239606,-500.0,0.00015164,2]
[405570800,1771204239615,-500.0,0.00015164,2]
[405570801,1771204239625,-500.0,0.00015164,2]
[405570802,1771204239634,-500.0,0.00015164,2]
[405570803,1771204239644,-500.0,0.00015164,2]
[405570804,1771204239654,-592.95,0.00015164,2]
[405570805,1771204239663,-592.95,0.00015164,2]
[405570806,1771204239672,-592.95,0.00015164,2]
[405570807,1771204239684,-592.95,0.00015164,2]
[405570808,1771204239694,-592.95,0.00015164,2]
[405570809,1771204239703,-592.95,0.00015164,2]
[405570810,1771204239712,-592.95,0.00015164,2]
[405570811,1771204239723,-592.95,0.00015164,2]